Cogmind - Beta 16 @@@ ROGUE MODE // 2025.12.25 @ 20:01:55 Player: 2401 Result: Destroyed by 4Z-Y1E(R) with Subdweller Laser Performance ------------- Evolutions (0) 0 Regions Visited (2) 400 Robots Destroyed (11) 55 Value Destroyed (340) 340 Prototype IDs (0) 0 Alien Tech Used (0) 0 Bonus (0) 0 TOTAL SCORE: 795 Bonus ------- None Cogmind --------- Core Integrity 0/250 Matter 300/300 Energy 100/100 System Corruption 1% Temperature Cool (6) Movement Core (400) Ox7 Location -10/Subcaves Parts ------- > --- POWER (1) -------- (None) > --- PROPULSION (2) --- (None) > --- UTILITY (2) ------ Large Storage Unit > --- WEAPON (2) ------- Subdweller Laser > --- INVENTORY (15) --- Light Ion Engine Light Ion Engine Improved Heat Sink Signal Interpreter Scrap Shield Tractor Beam Hammer Peak State ------------ > --- POWER ------------ Light Ion Engine > --- PROPULSION ------- Wheel Wheel > --- UTILITY ---------- Improved Terrain Scanner Seismic Detector > --- WEAPON ----------- Medium Laser Small Laser > --- INVENTORY -------- Ion Engine Aluminum Leg Aluminum Leg Wheel Mining Laser [Rating: 9] Favorites ----------- Power Ion Engine Engine Ion Engine Propulsion Wheel Wheel Wheel Utility Improved Heat Sink Device Improved Heat Sink Storage Large Storage Unit Protection Scrap Shield Weapon Small Laser Energy Gun Small Laser Special Weapon Mining Laser Impact Weapon Hammer Build | -11 -10 -10 ------- Run | Yrd Mat Sub Slots Evolved . | . . . Power . | . . . Propulsion . | . . . Utility . | . . . Weapon . | . . . Parts Attached 27 | 8 14 5 Power 5 | 1 3 1 Engine 5 | 1 3 1 Core . | . . . Reactor . | . . . Propulsion 6 | 2 3 1 Treads . | . . . Leg . | . . . Wheel 6 | 2 3 1 Hover . | . . . Flight . | . . . Utility 7 | 3 3 1 Device 4 | 3 1 . Storage 2 | . 2 . Processor . | . . . Hackware . | . . . Protection 1 | . . 1 Artifact . | . . . Weapon 9 | 2 5 2 Energy Gun 5 | 2 2 1 Energy Cannon . | . . . Ballistic Gun . | . . . Ballistic Cannon . | . . . Launcher . | . . . Special Weapon 3 | . 2 1 Impact Weapon 1 | . 1 . Slashing Weapon . | . . . Piercing Weapon . | . . . Special Melee Weapon . | . . . Unidentified Prototypes . | . . . Parts Lost 16 | . 10 6 Power 3 | . 2 1 Propulsion 6 | . 3 3 Utility 1 | . 1 . Weapon 6 | . 4 2 Highest Loss Streak 3 | . 3 3 To Critical Strikes 1 | . . 1 Average Backups 5 | 3 5 7 Power . | . . 1 Propulsion 1 | 2 1 . Utility 1 | . . 3 Weapon 1 | . 2 1 Tool/Special . | . . . Unused Backups 6 | 1 2 3 Power 1 | . . 1 Propulsion 2 | . 2 . Utility 2 | . . 2 Weapon 1 | 1 . . Tool/Special . | . . . Average Slot Usage (%) 83 | . 91 66 Engine 10 | . 9 14 Wheel 24 | . 26 22 Device 15 | . 22 . Storage 7 | . 5 11 Energy Gun 20 | . 24 10 Special Weapon 2 | . 1 4 Peak Build Rating 9 | 9 9 9 Average Rating 7 | 5 8 7 On Entrance 5 | . 9 7 Avg Prop Armor Cover (%) . | . . . Naked Turns . | . . . Heaviest Build 30 | 8 29 30 Greatest Support 36 | 20 26 36 Greatest Overweight (x) 7 | . 1 7 Average Overweight (x) . | . . . Largest Inventory Capacity 15 | 5 15 15 Average Capacity 9 | 5 8 13 Most Carried 10 | 5 7 10 Average Carried 5 | 3 5 7 Final Capacity 15 | 5 15 15 Final Carried 8 | 5 6 8 Class Distribution -------------------- 81% | Mutant 18% | Scavenger-Mutant Dominant Class ---------------- Mutant | -10/Materials Mutant | -10/Subcaves Resources | -11 -10 -10 ----------- Run | Yrd Mat Sub Matter Collected 517 | 280 186 51 Remotely . | . . . Salvage Created 386 | 58 328 . Parts 17 | 7 10 . Haulers Intercepted . | . . . Recyclers Shooed . | . . . Parts Field Recycled . | . . . Retrieved Matter . | . . . Parts Self-Destructed . | . . . Prevented . | . . . Parts Restored . | . . . Kills | -11 -10 -10 ------- Run | Yrd Mat Sub Combat Hostiles Destroyed 9 | 1 8 . Melee 1 | . 1 . Guns 5 | 1 4 . Cannons 1 | . 1 . Classes Destroyed 3 | 2 1 . Worker 1 | . 1 . Tunneler 1 | 1 . . Grunt 9 | 1 8 . Best Kill Streak 3 | 2 3 . Combat Bots Only 3 | 1 3 . Max Kills in Single Turn 1 | 1 1 . Gunslinging . | . . . Exploded . | . . . Melee 1 | . 1 . Uniques/NPCs Destroyed . | . . . Combat | -11 -10 -10 -------- Run | Yrd Mat Sub Hostile Shots Fired 136 | 7 98 31 Missed 44 | 3 29 12 Hits 92 | 4 69 19 Projectile 92 | 4 69 19 Critical Strikes 1 | . . 1 Damage Taken 1240 | 43 784 413 Core 256 | 11 159 86 Absorbed by Shields . | . . . Core Remaining (%) 95 | 95 . . Volleys Fired 38 | 5 30 3 Largest 2 | 2 2 1 Hottest 140 | 90 140 40 Shots Fired 66 | 10 53 3 Gun 54 | 10 41 3 Cannon . | . . . Launcher . | . . . Special 12 | . 12 . Kinetic . | . . . Thermal 61 | 10 48 3 Explosive . | . . . Electromagnetic 5 | . 5 . Robot Hit Streak 10 | 3 10 1 Robot Miss Streak 3 | 2 3 1 Penetration Max . | . . . Secondary Targets 2 | . 2 . Max Gunslinging Chain 1 | . 1 . Shots Hit Robots 41 | 5 35 1 Core Hits 16 | 3 13 . Critical Kills 1 | . 1 . Critical Parts Destroyed . | . . . Critical Strikes 3 | 1 2 . Burn 2 | 1 1 . Smash 1 | . 1 . Melee Attacks 8 | . 8 . Impact 8 | . 8 . Slashing . | . . . Piercing . | . . . Sneak Attacks . | . . . Combat Hostiles . | . . . Follow-up Attacks . | . . . Damage Inflicted 611 | 69 531 11 Guns 414 | 69 334 11 Cannons . | . . . Explosions . | . . . Melee 118 | . 118 . Ramming 7 | . 7 . Kinetic . | . . . Thermal 432 | 69 352 11 Explosive . | . . . Electromagnetic 54 | . 54 . Impact 118 | . 118 . Slashing . | . . . Piercing . | . . . Highest Corruption 1 | . 1 1 Average Corruption 1 | . 1 1 Corruption Purged . | . . . Corruption Blocked . | . . . Effects 8 | . 5 3 Message Errors 2 | . 1 1 Matter Fused 3 | . 3 . Data Loss (minor) 2 | . . 2 Alerts 1 | . 1 . Overload Shots . | . . . Overflow Damage 4 | . 4 . Projectiles . | . . . Explosions . | . . . Melee 4 | . 4 . Knockbacks . | . . . Impact . | . . . Kinetic . | . . . Secondary . | . . . Self-Inflicted Damage 3 | . 3 . Shots . | . . . Rammed 1 | . 1 . Targets Rammed 1 | . 1 . Kicked . | . . . Crushed . | . . . Highest Temperature 363 | 168 363 . Average Temperature 131 | 90 143 . Received Heat Transfer 456 | 24 366 66 Effects 2 | . 2 . Shutdowns 1 | . 1 . Matter Decay 1 | . 1 . Siege Activations . | . . . Martial Activations . | . . . Shielding Activations . | . . . Robots Disrupted . | . . . Combat Hostiles . | . . . Robots Corrupted 2 | . 2 . Combat Hostiles 2 | . 2 . Parts Fried 5 | . 5 . Impact Corruptions 1 | . 1 . Robots Melted . | . . . Combat Hostiles . | . . . Parts Melted 1 | 1 . . Heat Transferred 1205 | 260 920 25 Parts Sabotaged . | . . . Parts Stolen . | . . . Parts Stripped . | . . . Power Chain Reactions . | . . . Alert | -11 -10 -10 ------- Run | Yrd Mat Sub Maximum Alert Level . | . . . Low Security (%) 100 | 100 100 . Level 1 . | . . . Level 2 . | . . . Level 3 . | . . . Level 4 . | . . . Level 5 . | . . . High Security . | . . . Max Security . | . . . Peak Influence 65 | 15 65 . Initial . | . . . Average 12 | 2 14 . Influence Increases 290 | 25 265 . Destroy 0b10 Robot/C 180 | 20 160 . Destroy 0b10 Robot/NC 10 | 5 5 . Destroy Leader 30 | . 30 . Successful Hack 5 | . 5 . Destroy Structure 5 | . 5 . Lose Combat Pursuer 60 | . 60 . Influence Decreases 290 | 25 265 . Time Decay 208 | 25 183 . Lost Part 82 | . 82 . Squads Dispatched 1 | . 1 . Investigation . | . . . Extermination . | . . . Reinforcement 1 | . 1 . Assault . | . . . Garrison . | . . . Intercept . | . . . Searches Triggered . | . . . Construction Impeded . | . . . Haulers Reinforced . | . . . Active Scanning Responses . | . . . Cargo Convoy Interrupts . | . . . Stealth | -11 -10 -10 --------- Run | Yrd Mat Sub Distress Signals 1 | . 1 . Communications Jammed . | . . . Distress Signals . | . . . Times Spotted 36 | 1 19 16 Peak Tracking Total 6 | 1 5 6 Tactical Retreats 3 | . 2 1 Traps | -11 -10 -10 ------- Run | Yrd Mat Sub Traps Triggered 1 | . 1 . Indirectly . | . . . Trap Hack Attempts . | . . . Triggered . | . . . Disarmed . | . . . Reprogrammed . | . . . Reused . | . . . Traps Extracted . | . . . Installed . | . . . Triggered . | . . . Machines | -11 -10 -10 ---------- Run | Yrd Mat Sub Machines Disabled . | . . . Max in Single Turn . | . . . Machines Repaired . | . . . Machines Dismantled . | . . . Machines Sabotaged . | . . . Overloaded Fab Kills . | . . . Hacking | -11 -10 -10 --------- Run | Yrd Mat Sub Machines Accessed 7 | . 7 . Terminals 6 | . 6 . Fabricators . | . . . Repair Stations . | . . . Recycling Units 1 | . 1 . Scanalyzers . | . . . Garrison Access . | . . . Total Hacks 19 | . 19 . Successful 13 | . 13 . Failed 6 | . 6 . Catastrophic 1 | . 1 . Database Lockouts . | . . . Manual 1 | . 1 . Terminals 17 | . 17 . Fabricators . | . . . Repair Stations . | . . . Recycling Units 2 | . 2 . Scanalyzers . | . . . Garrison Access . | . . . Terminal Hacks 11 | . 11 . Record 5 | . 5 . Alert Level 3 | . 3 . Locate Traps 2 | . 2 . Zone Layout 1 | . 1 . Fabricator Hacks . | . . . Repair Station Hacks . | . . . Recycling Unit Hacks 2 | . 2 . Report Inventory 1 | . 1 . Retrieve Components 1 | . 1 . Scanalyzer . | . . . Garrison Access Hacks . | . . . Unauthorized Hacks . | . . . Terminals . | . . . Fabricators . | . . . Repair Stations . | . . . Recycling Units . | . . . Scanalyzers . | . . . Garrison Access . | . . . Data Cores Recovered . | . . . Used . | . . . Hacking Detections 5 | . 5 . Full Trace Events 1 | . 1 . Feedback Events . | . . . Feedback Blocked . | . . . Robot Schematics Acquired . | . . . Robots Built . | . . . Authchips . | . . . Time . | . . . Total Robot Build Rating . | . . . Part Schematics Acquired . | . . . Parts Built . | . . . Authchips . | . . . Time . | . . . Total Part Build Rating . | . . . Part Studies Acquired . | . . . Parts Repaired . | . . . Time . | . . . Parts Recycled . | . . . Recycled Matter . | . . . Retrieved Matter . | . . . Retrieved Components 9 | . 9 . Parts Scanalyzed . | . . . Part Schematics Acquired . | . . . Parts Damaged . | . . . Bothacking | -11 -10 -10 ------------ Run | Yrd Mat Sub Used RIF Installer . | . . . Robots Hacked . | . . . Non-combat . | . . . Combat . | . . . Robot Hacks Applied . | . . . Relay Couplers Released . | . . . Fabnet Peak Effective % . | . . . Robots Rewired . | . . . Allies Hacked . | . . . Hacks Repelled . | . . . Allies | -11 -10 -10 -------- Run | Yrd Mat Sub Total Allies . | . . . Largest Group . | . . . Highest-Rated Group . | . . . Highest-Rated Ally . | . . . Total Orders . | . . . Ally Attacks . | . . . Total Damage . | . . . Kills . | . . . Allies Corrupted . | . . . Allies Melted . | . . . Intel | -11 -10 -10 ------- Run | Yrd Mat Sub Active Infowar (turns) 519 | 74 445 . Terrain 193 | 63 130 . Seismic 519 | 74 445 . Robot Analysis Total . | . . . Derelict Logs Recovered 1 | . . 1 Drone Launches . | . . . Drone Recoveries . | . . . Exploration | -11 -10 -10 ------------- Run | Yrd Mat Sub Turns Passed 1173 | 186 684 303 Spaces Moved 757 | 92 415 250 Core 18 | 17 . 1 Treads . | . . . Legs . | . . . Wheels 739 | 75 415 249 Hover . | . . . Flight . | . . . Fastest Speed 50 | 50 80 95 Average Speed 93 | 74 87 110 Slowest Speed 400 | 80 115 400 Overloaded Moves . | . . . Propulsion Burnouts . | . . . Robots Hopped . | . . . Potential Cave-ins 2 | . 2 . Cave-ins Triggered . | . . . Exploration Rate (%) 31 | 8 64 23 Regions Visited 2 Branch Regions 1 Pre-discovered Areas . | . . . Known Exits Taken . | . . . Unknown Exits Taken 2 | 1 1 . Scrap Searched . | . . . Spaces Dug 6 | . 6 . Terrain Destroyed 9 | . 9 . Melee . | . . . Projectile 9 | . 9 . AOE . | . . . Terrain Rammed . | . . . Walls Destroyed . | . . . Machines Disabled . | . . . Actions | -11 -10 -10 --------- Run | Yrd Mat Sub Total 1124 | 200 645 279 Wait 237 | 79 156 2 Move 755 | 91 414 250 Hop . | . . . Pick Up 37 | 13 12 12 Fast Attach 4 | 1 3 . Attach 21 | 8 7 6 Detach 2 | 1 . 1 Swap 8 | . 7 1 Drop 13 | 2 7 4 Fire 38 | 5 30 3 Melee 8 | . 8 . Ram 1 | . 1 . Kick . | . . . Crush . | . . . Escape Stasis . | . . . Rewire . | . . . Trap . | . . . Miscellaneous . | . . . Route ------- -11/Scrapyard -10/Materials (discovered 4 exits: [*Mat] / [*Min x2] / [*Sub]) -10/Subcaves History --------- Turn | Location | Event 2 | -11/Scrapyard | Met Revision 17 83 | -11/Scrapyard | Discovered new exit (range 8) 187 | -11/Scrapyard | Entered Materials 321 | -10/Materials | Build established: Mutant 381 | -10/Materials | Lost 3 parts (1p1u1w) 510 | -10/Materials | Discovered new exit (range 16) 642 | -10/Materials | Discovered new exit (range 9) 673 | -10/Materials | Discovered new exit (range 6) 736 | -10/Materials | Discovered new exit (range 9) 796 | -10/Materials | Core integrity fell below 50% 834 | -10/Materials | Lost 3 parts (1n2w) 871 | -10/Materials | Entered Subcaves 872 | -10/Subcaves | Approached by a straggling Scientist 880 | -10/Subcaves | Learned Materials interactive machine intel 1024 | -10/Subcaves | Ambushed by Subdwellers from Twisted Machinery 1075 | -10/Subcaves | Ambushed by swarm of Subdwellers 1124 | -10/Subcaves | Lost 4 allies 1140 | -10/Subcaves | Lost 3 parts (2n1w) 1165 | -10/Subcaves | Core integrity fell below 20% 1174 | -10/Subcaves | Destroyed by 4Z-Y1E(R) with Subdweller Laser Last Messages --------------- 3K-NJH(g): "Sorry we're late! Had another grouchy Sub to deal with. Who's the new fellow?" SK-EQF(g) destroyed. CM-KEI(g) destroyed. N9-5D0(h) destroyed. Sml. Laser destroyed. SZ-4PW(R) emerges from the Twisted Machinery. Com. Wheel destroyed. DJ-KIP(R) destroyed. IH-LHT(R) affixes Scrap Shield Fragment to Scrap Shield. Wheel destroyed. 4Z-Y1E(R): "GOTOSCRAP!" Acquired Sub. Laser. Mining Laser destroyed. System corrupted: Component data lost. Sub. Power Source destroyed. Critical hit (Destroy). Sub. Monowheel destroyed. Map ----- +----------------------------------------------------+ | #??????????????????????????????????????????? | | #??????????????????????????????????????????? | | #??????????????????????????????????????????? | | #??????????????????????????????????????????? | | #### ##??????????????????????????????????????????? | | #???##???????????????????????????????????????????? | | ####?????????????????????????????????????????????? | | #???##????????????????????????????????????????? | | #??# ###??????????????????????????????????????? | | #### ###????????????????????????????????????? | | ### ##???????????????????????????????????? | | # ##??????????????????????????????????? | | ## ##???#?###?????????????????????????? | | #??? ## ?????????????????????????? | | #???? ?????????????????????????? | | #???? ??????##?????????????????? | | ### #????? ?????# #?????????????????? | | #### #?##?? ##?## ??????????????????? | | #?# ## ## ??? ## ??????????????????? | | #?# #??? ?? ???????????????????? | | ### #??#?? ??? ????????????????????? | | #### ??? #????????????????????? | | ## ## ???# #????????????????????? | | ## #?## ##???????????????????? | | ### #???????????????????? | | ## @ #?????????????????????? | | #### ##?????????????????????? | | ##???#### ##??????????????????????? | | ## ###???????# ##??##????????#?????????? | | ?# #?????????## ### #?????? #?????????? | | ?# ###???# # #< = #????? "#?????????? | | ## #????# & R !%! ##### " #?????????? | | # #???# "## = # """ ?????????? | | ##???# ??# """?????????? | | "" ##???????## ## # "???????????? | | "" #????????## ##?##### ##??????????????? | | """" ##????????##???????# #??????????????? | | " ##???????????????## #??????????????? | | ## ##########?????## #??????????????? | | ?#" ## # ####### #??????????????? | | #"""?## ######??????????????? | | ??## ##???????????????????? | | ???## # #########????????????????????? | | # ##????####### #####????????????????????????????? | | ##????????????###????????????????????????????????? | | ?????????????????????????????????????????????????? | | ?????????????????????????????????????????????????? | | ?????????????????????????????????????????????????? | | ?????????????????????????????????????????????????? | | ?????????????????????????????????????????????????? | +----------------------------------------------------+ Best States ------------- Heat Dissipation 39 Energy Generation 15 Energy Capacity 450 Matter Stores 300 Matter Capacity 300 Sight Range 16 Terrain Scan Range 16 Terrain Scan Density 10 Armor Coverage 800 Evasion (%) 44 Item Schematics ----------------- None Robot Schematics ------------------ None Fabricated ------------ Nothing Repaired ---------- Nothing Studied --------- None Alien Tech Used ----------------- None Achievements -------------- DATA ERROR: Steam Global Achievement% Power Corrupts Challenges ------------ None Game ------ Seed DerelictShieldCartridge Manual? 0 Play Time 00:40:24 Cumulative 2.9 hours Start 2025.12.25 @ 19:05:18 End 2025.12.25 @ 20:01:55 Sessions 1 Manual Loads 0 Difficulty Rogue Special Mode None Game No. 2 Rogue 2 Adventurer 0 Explorer 0 Win Type - Total 0 Types 0/0/0/0/0/0/0/0/0/0 Lore% 0 Gallery% 3 Achievement% 2 Wizard Run 0 Options --------- Layout 1 ASCII 0 Keyboard 0 Movement Mouse Keybinds 0 Fullscreen 1 Font 24/Terminus Map View 50x35 Zoom Use 0% Tactical HUD 0 Map Filters NONE Filters NONE Steam 1 RUN: cd9b55a8-7047-4bab-8f95-0f3f84e5b27c